bitfinex-derivatives/quotes_ETHF0:USTF0_20250405
["timestamp","ask_amount","ask_price","bid_price","bid_amount"]
[1743894092552,0.77932,1797.1,1797.0,3.00730038]
[1743894093258,0.78764074,1797.2,1797.0,3.78664038]
[1743894093455,0.00834074,1797.2,1797.1,3.07072038]
[1743894093959,3.98691,1797.7,1797.4,0.77916]
[1743894094155,3.2078,1797.7,1797.5,2.99330038]
[1743894094462,3.2078,1797.7,1797.6,2.2910377]
[1743894094463,3.98686,1797.7,1797.6,2.2910377]
[1743894095354,21.5055441,1797.7,1797.6,2.2910377]
[1743894095663,20.7264841,1797.7,1797.6,3.0701477]
[1743894095856,17.5186841,1797.7,1797.6,3.0701477]
[1743894097957,0.00834074,1797.8,1797.7,0.77906]
[1743894098163,0.00834074,1797.8,1797.7,2.9756977]
[1743894098363,0.00834074,1797.8,1797.7,5.4756977]
[1743894098861,0.00834074,1797.8,1797.7,5.47576501]
[1743894099254,0.00834074,1797.8,1797.7,2.97576501]
[1743894099863,0.00834074,1797.8,1797.7,5.47576501]
[1743894100060,17.5186841,1798.3,1798.1,0.77886]
[1743894100260,17.5186841,1798.3,1798.2,2.95995689]
[1743894100453,17.5186841,1798.3,1798.2,3.73880689]
[1743894100659,58.95142845,1798.4,1798.2,3.73880689]
[1743894100964,58.95142845,1798.4,1798.3,3.02365689]
[1743894102958,21.782316,1798.4,1798.3,3.02365689]
[1743894103157,21.782316,1798.4,1798.3,3.75335689]
[1743894104166,21.782316,1798.4,1798.3,3.75219028]
[1743894105470,21.782316,1798.4,1798.3,2.97339028]
[1743894105961,22.561076,1798.4,1798.3,2.97375103]
[1743894106268,23.964276,1798.4,1798.3,2.2171]
[1743894108661,0.7788,1798.3,1798.2,0.7151]
[1743894108861,2.182,1798.3,1798.2,0.75644741]
[1743894109768,2.182,1798.3,1798.2,0.75646315]
[1743894111169,2.182,1798.3,1798.1,5.49861074]
[1743894111370,1.4386,1798.2,1798.1,5.49861074]
[1743894111562,1.4386,1798.2,1798.1,6.25486685]
[1743894112664,1.4386,1798.2,1798.1,3.97239685]
[1743894112862,1.4386,1798.2,1798.1,4.75128685]
[1743894113771,1.4386,1798.2,1798.1,0.76459685]
[1743894113968,1.4386,1798.2,1798.1,1.54348685]
[1743894114169,1.4386,1798.2,1798.1,1.54343606]
[1743894115669,1.4386,1798.2,1798.1,0.76454606]
[1743894116662,2.21745,1798.2,1798.1,0.76454606]
[1743894117165,1.4386,1798.2,1798.1,0.7647938]
[1743894117367,2.21745,1798.2,1798.1,0.7647938]
[1743894117768,1.4386,1798.2,1798.1,0.7647938]
[1743894118265,2.21745,1798.2,1798.1,0.7647938]
[1743894118975,2.21745,1798.2,1798.1,0.76513005]
[1743894120070,1.4386,1798.2,1798.1,1.54402005]
[1743894120271,1.47689,1798.4,1798.2,0.77884]
[1743894120462,2.95599,1798.4,1798.2,3.70664]
[1743894120976,1.4791,1798.3,1798.2,3.70664]
[1743894121278,1.4791,1798.3,1798.2,4.46374565]
[1743894121469,3.54,1798.4,1798.3,0.77879]
[1743894121676,3.54,1798.4,1798.3,3.07179565]
[1743894121875,5.0639,1798.4,1798.3,3.07179565]
[1743894122075,1.5239,1798.4,1798.3,3.07212044]
[1743894122677,4.73932595,1798.5,1798.4,0.77876]
[1743894122879,4.73932595,1798.5,1798.4,3.07209044]
[1743894123081,2.27668595,1798.5,1798.4,3.07209044]
[1743894124082,3.05540595,1798.5,1798.4,3.07209044]
[1743894124276,3.05540595,1798.5,1798.4,2.29333044]
[1743894124972,3.05540595,1798.5,1798.4,0.75743044]
[1743894125583,3.05540595,1798.5,1798.4,0.75943244]
[1743894125881,3.05540595,1798.5,1798.4,2.28293244]
[1743894126183,0.00828595,1798.5,1798.4,2.28293244]
[1743894126479,0.00828595,1798.5,1798.4,3.06169244]
[1743894126677,0.00828595,1798.5,1798.4,2.30226]
[1743894126872,0.00828595,1798.5,1798.4,3.06189567]
[1743894127380,0.00828595,1798.5,1798.4,3.06227001]
[1743894128477,0.78700595,1798.5,1798.4,2.28351001]
[1743894128881,0.00828595,1798.5,1798.4,3.06227001]
[1743894129178,0.78700595,1798.5,1798.4,1.5235]
[1743894129383,0.78700595,1798.5,1798.4,2.28430838]
[1743894129576,0.78700595,1798.5,1798.4,3.06306838]
[1743894130382,0.78700595,1798.5,1798.4,2.28430838]
[1743894131582,0.78700595,1798.5,1798.4,3.06306838]
[1743894132883,0.00828595,1798.5,1798.4,3.06306838]
[1743894134686,0.00828595,1798.5,1798.4,3.06269128]
[1743894138380,0.00828595,1798.5,1798.4,3.06229322]
[1743894141980,0.00828595,1798.5,1798.4,3.06214479]
[1743894143787,0.00828595,1798.5,1798.4,2.30226]
[1743894143986,0.00828595,1798.5,1798.4,3.06214534]
[1743894145686,0.00828595,1798.5,1798.4,3.06223381]
[1743894147490,0.00828595,1798.5,1798.4,3.06238238]
[1743894149293,0.00828595,1798.5,1798.4,3.06262693]
[1743894149994,1.46348595,1798.5,1798.4,3.06262693]
[1743894151293,1.46348595,1798.5,1798.4,3.0626823]
[1743894151997,0.00828595,1798.5,1798.4,3.0626823]
[1743894152289,0.00828595,1798.5,1798.4,6.2704823]
[1743894153097,0.00828595,1798.5,1798.4,6.27052524]
[1743894153292,17.5186841,1798.9,1798.8,0.77859]
[1743894153493,17.5186841,1798.9,1798.8,1.53905524]
[1743894153898,17.5186841,1798.9,1798.8,4.39975524]
[1743894154691,17.5186841,1798.9,1798.8,3.63929]
[1743894154895,17.5186841,1798.9,1798.8,4.39896508]
[1743894155695,16.73586013,1799.1,1799.0,0.7785]
[1743894155896,16.73586013,1799.1,1799.0,8.28497508]
[1743894156396,16.73586013,1799.1,1799.0,10.78497508]
[1743894156595,16.73586013,1799.1,1799.0,10.78361059]
[1743894157197,16.73586013,1799.1,1799.0,8.28361059]
[1743894157497,16.73586013,1799.1,1799.0,10.78361059]
[1743894157694,16.73586013,1799.1,1799.0,8.28361059]
[1743894158095,16.73586013,1799.1,1799.0,10.78361059]
[1743894158290,15.23525013,1799.1,1799.0,10.0253]
[1743894158490,15.23525013,1799.1,1799.0,10.78220331]
[1743894159506,1.5146,1799.6,1799.0,10.78220331]
[1743894159507,1.5146,1799.6,1799.4,0.77829]
[1743894159694,1.47349302,1799.6,1799.5,0.75690331]
[1743894160089,1.47349302,1799.6,1799.5,2.26920331]
[1743894160493,1.47349302,1799.6,1799.5,3.04665143]
[1743894161301,0.7404,1799.7,1799.6,0.77824]
[1743894161500,0.7404,1799.7,1799.6,1.53431143]
[1743894161801,0.7404,1799.7,1799.6,0.75607143]
[1743894162102,0.7404,1799.7,1799.6,0.75559517]
[1743894162291,1.5186,1799.7,1799.6,0.75559517]
[1743894162698,1.5186,1799.7,1799.4,5.7899]
[1743894162899,1.5033,1799.6,1799.5,0.75511535]
[1743894163101,1.5033,1799.6,1799.5,1.53339535]
[1743894163806,1.5033,1799.6,1799.5,1.53276026]
[1743894164099,1.5033,1799.6,1799.5,0.75448026]
[1743894164290,1.5033,1799.6,1799.5,1.53276026]
[1743894165600,1.5033,1799.6,1799.5,0.75448026]
[1743894166801,2.28154,1799.6,1799.5,0.75448026]
[1743894167005,3.01684,1799.6,1799.5,0.75448026]
[1743894167205,3.01684,1799.6,1799.4,3.538]
[1743894167396,1.5134,1799.5,1799.4,3.538]
[1743894167797,1.5134,1799.5,1799.4,4.29188155]
[1743894168398,1.5134,1799.5,1799.4,0.75388155]
[1743894168799,2.29168,1799.5,1799.4,0.75388155]
[1743894169505,2.29168,1799.5,1799.4,0.75388746]
[1743894170698,22.85822835,1799.9,1799.4,0.75388746]
[1743894170897,22.85822835,1799.9,1799.8,0.77815]
[1743894171397,22.85822835,1799.9,1799.7,0.77816]
[1743894171598,21.12542835,1799.9,1799.8,1.4438]
[1743894171993,21.90353835,1799.9,1799.8,1.4438]
[1743894172198,21.12542835,1799.9,1799.8,2.22195]
[1743894172804,21.12542835,1799.9,1799.8,1.4438]
[1743894173307,21.90353835,1799.9,1799.8,1.4438]
[1743894173900,2.25311,1799.9,1799.8,1.4438]
[1743894175307,2.25311,1799.9,1799.7,0.77817]
[1743894175509,1.4484,1799.8,1799.7,0.77817]
[1743894175696,1.4484,1799.8,1799.7,1.53110048]
[1743894176708,1.4484,1799.8,1799.7,1.53116415]
[1743894177798,2.22655,1799.8,1799.7,0.75299415]
[1743894177998,2.96305,1799.8,1799.7,0.75299415]
[1743894178507,2.96305,1799.8,1799.7,1.53175563]
[1743894178809,2.1849,1799.8,1799.7,1.53175563]
[1743894180811,2.96305,1799.8,1799.7,0.75355563]
[1743894181710,2.1849,1799.8,1799.7,1.53175563]
[1743894181910,1.4484,1799.8,1799.7,1.53175563]
[1743894182306,1.4484,1799.8,1799.7,1.53361441]
[1743894183412,1.4484,1799.8,1799.7,1.53430732]
[1743894185215,2.22655,1799.8,1799.7,1.53520996]
[1743894186013,1.4484,1799.8,1799.7,1.53520996]
[1743894186612,2.22655,1799.8,1799.7,1.53520996]
[1743894186814,2.22655,1799.8,1799.7,0.75700996]
[1743894187014,1.4484,1799.8,1799.7,0.75725707]
[1743894187209,2.22655,1799.8,1799.7,0.75725707]
[1743894187410,2.97825,1799.8,1799.7,0.75725707]
[1743894187611,0.77827,1799.6,1799.4,4.3143]
[1743894187917,0.77827,1799.6,1799.5,0.75758208]
[1743894188407,2.21927,1799.6,1799.5,0.75758208]
[1743894190010,1.94572,1799.5,1798.9,0.77851]
[1743894190317,3.2078,1799.3,1798.9,0.7316]
[1743894190508,1.4519,1799.2,1798.9,0.69049302]
[1743894190709,0.7785,1799.0,1798.9,0.69049302]
[1743894190910,0.77854,1798.9,1798.8,5.4777]
[1743894191111,0.77854,1798.9,1798.8,2.27824074]
[1743894191416,0.77854,1798.9,1798.8,0.00834074]
[1743894191614,2.29204,1798.9,1798.8,0.00834074]
[1743894192418,1.5135,1798.9,1798.8,0.00834074]
[1743894192617,1.5135,1798.9,1798.8,1.44894074]
[1743894193413,1.5135,1798.9,1798.8,2.22753074]
[1743894193608,0.74814073,1799.1,1798.8,2.22753074]
[1743894193811,1.5135,1799.0,1798.9,2.21914]
[1743894194014,0.00834073,1799.1,1798.9,2.96064]
[1743894194213,0.00834073,1799.1,1799.0,2.2191]
[1743894196720,0.00834073,1799.1,1799.0,5.4269]
[1743894197024,0.00834073,1799.1,1799.0,8.9749]
[1743894197718,0.6966,1799.6,1799.3,0.77834]
[1743894197719,2.17487,1799.6,1799.3,0.77834]
[1743894197919,2.17487,1799.6,1799.4,2.9313]
[1743894198119,2.17487,1799.6,1799.5,1.5329]
[1743894201723,0.77828,1799.5,1799.4,1.3984]
[1743894202026,2.21398,1799.5,1799.4,4.37831722]
[1743894202625,1.4357,1799.5,1799.4,4.37831722]
[1743894202823,1.4357,1799.5,1799.4,3.59998722]
[1743894203322,1.4357,1799.5,1799.4,3.60007511]
[1743894203722,2.21398,1799.5,1799.4,3.60007511]
[1743894205118,2.21398,1799.5,1799.4,4.37840511]
[1743894205720,2.21398,1799.5,1799.4,3.60007511]
[1743894207829,1.4357,1799.5,1799.4,4.37840511]
[1743894208026,0.77827,1799.6,1799.4,3.60007511]
[1743894208221,0.77827,1799.6,1799.5,2.22727511]
[1743894209028,0.77827,1799.6,1799.5,3.00555511]
[1743894210427,2.23173,1799.7,1799.5,3.00555511]
[1743894210622,2.2317,1799.7,1799.6,1.52801511]
[1743894210820,1.4535,1799.7,1799.6,1.52837933]
[1743894212531,1.4535,1799.7,1799.6,1.52853487]
[1743894214427,2.2317,1799.7,1799.6,1.52873748]
[1743894215431,2.2317,1799.7,1799.6,0.75049748]
[1743894216020,2.2317,1799.7,1799.6,1.52873748]
[1743894216227,9.7545,1799.9,1799.7,0.77817]
[1743894216524,1.4912,1799.8,1799.7,0.77817]
[1743894216720,2.26935,1799.8,1799.7,0.75059012]
[1743894218022,1.4912,1799.8,1799.7,1.52879331]
[1743894218223,1.4912,1799.8,1799.7,2.26859331]
[1743894219133,1.4912,1799.8,1799.7,3.78389331]
[1743894219629,26.36052835,1800.0,1799.7,3.00569331]
[1743894219630,20.42852835,1800.0,1799.7,3.00569331]
[1743894219836,21.92382835,1800.0,1799.8,2.99349331]
[1743894220137,21.92382835,1800.0,1799.9,2.26589331]
[1743894221037,21.92382835,1800.0,1799.9,3.04400331]
[1743894222138,21.14572835,1800.0,1799.9,3.04400331]
[1743894222838,1.4953,1800.0,1799.9,3.04400331]
[1743894223038,2.27337,1800.0,1799.9,3.04400331]
[1743894223539,2.27337,1800.0,1799.9,3.04428932]
[1743894224839,2.27337,1800.0,1799.9,0.75087932]
[1743894226738,2.27337,1800.0,1799.9,1.52898932]
[1743894227047,2.27337,1800.0,1799.9,0.75087932]
[1743894227239,2.27337,1800.0,1799.9,0.7510888]
[1743894227437,1.4953,1800.0,1799.9,1.5291988]
[1743894227838,1.4953,1800.0,1799.9,1.52915827]
[1743894228339,2.27337,1800.0,1799.9,1.52915827]
[1743894228939,2.27337,1800.0,1799.9,3.02005827]
[1743894229240,22.560316,1800.2,1799.9,2.24194827]
[1743894229440,24.034016,1800.2,1800.0,3.72727827]
[1743894229640,24.01343425,1800.2,1800.1,3.74807827]
[1743894230543,23.23543425,1800.2,1800.1,3.74807827]
[1743894230739,19.65042835,1800.3,1800.2,0.77798]
[1743894230939,19.65042835,1800.3,1800.2,3.01992827]
[1743894231538,21.08382835,1800.3,1800.2,3.01992827]
[1743894232741,21.08382835,1800.3,1800.2,3.02695607]
[1743894233646,19.65042835,1800.3,1800.2,3.02695607]
[1743894234142,19.65042835,1800.3,1800.2,3.02698159]
[1743894234337,2.2113,1800.4,1800.2,3.02698159]
[1743894234545,2.2113,1800.4,1800.3,0.75810159]
[1743894234748,2.2113,1800.4,1800.3,0.75801611]
[1743894234945,2.2113,1800.4,1800.3,1.53595611]
[1743894235139,2.2113,1800.4,1800.3,0.75801611]
[1743894236449,2.2113,1800.4,1800.3,0.75799911]
[1743894236847,2.2113,1800.4,1800.3,1.53593911]
[1743894237947,1.4334,1800.4,1800.3,1.53593911]
[1743894238149,1.4334,1800.4,1800.3,2.28473911]
[1743894238347,1.4334,1800.4,1800.3,2.28466606]
[1743894239044,3.98567,1800.5,1800.3,2.28466606]
[1743894239241,3.98567,1800.5,1800.4,2.97002606]
[1743894240048,3.98567,1800.5,1800.4,2.97002029]
[1743894240350,5.42237,1800.5,1800.4,2.97002029]
[1743894242057,3.98567,1800.5,1800.4,2.97002029]
[1743894242948,3.98567,1800.5,1800.4,0.75792029]
[1743894243148,6.14777,1800.5,1800.4,0.7579823]
[1743894243752,2.93997,1800.5,1800.4,0.7579823]
[1743894245551,6.14777,1800.5,1800.4,0.7579823]
[1743894245755,0.77798,1800.2,1800.0,6.24864]
[1743894245957,0.77795,1800.3,1800.2,0.77796]
[1743894246150,0.77795,1800.3,1800.2,3.04806382]
[1743894246351,9.86601,1800.3,1799.7,0.00834074]
[1743894246559,0.7781,1800.0,1799.8,0.75755825]
[1743894247057,0.7781,1800.0,1799.8,1.51775825]
[1743894247257,1.5183,1799.9,1799.8,1.51775825]
[1743894247455,0.77807,1800.0,1799.8,0.7602]
[1743894247656,2.29637,1800.0,1799.8,1.53833]
[1743894248952,1.5183,1800.0,1799.8,0.7602]
[1743894249152,2.2293,1799.9,1799.8,1.53835]
[1743894249859,3.00741,1799.9,1799.8,0.7602]
[1743894250263,3.00741,1799.9,1799.8,1.53835]
[1743894250561,3.00741,1799.9,1799.8,0.7602]
[1743894250963,3.00741,1799.9,1799.8,1.53835]
[1743894251362,3.00741,1799.9,1799.8,0.7602]
[1743894251561,2.2293,1799.9,1799.8,0.7602]
[1743894251757,3.00741,1799.9,1799.8,0.7602]
[1743894255161,3.00741,1799.9,1799.7,0.00834074]
[1743894255162,0.77815,1799.8,1799.7,0.00834074]
[1743894255461,2.30425,1799.8,1799.7,0.00834074]
[1743894256163,2.30425,1799.8,1799.7,0.78654074]
[1743894256465,2.30425,1799.8,1799.7,0.00834074]
[1743894256865,3.04195,1799.8,1799.7,0.00834074]
[1743894258466,3.04195,1799.8,1799.7,0.76156929]
[1743894259567,3.04195,1799.8,1799.7,0.76150937]
[1743894261470,3.04195,1799.8,1799.7,0.76135328]
[1743894261971,6.58095,1799.8,1799.7,0.76135328]
[1743894263870,6.58095,1799.8,1799.7,1.49915328]
[1743894264971,5.84325,1799.8,1799.7,1.49915328]
[1743894265172,5.84325,1799.8,1799.7,1.49898794]
[1743894265469,5.84325,1799.8,1799.7,2.20258794]
[1743894265970,5.84325,1799.8,1799.7,3.67488794]
[1743894266972,5.84325,1799.8,1799.7,3.67492176]
[1743894268775,5.84325,1799.8,1799.7,3.67504857]
[1743894270578,5.84325,1799.8,1799.7,3.67509684]
[1743894271270,4.31715,1799.8,1799.7,3.67509684]
[1743894271571,3.539,1799.8,1799.7,4.45329684]
[1743894271973,4.31514,1799.9,1799.8,0.77815]
[1743894272170,4.31514,1799.9,1799.8,2.9220061]
[1743894272370,3.537,1799.9,1799.8,2.92227151]
[1743894273178,4.31511,1799.9,1799.8,2.92227151]
[1743894273683,4.31511,1799.9,1799.8,2.14412151]
[1743894275874,0.77811,1799.9,1799.8,2.14412151]
[1743894276982,0.77809,1800.0,1799.8,2.92224151]
[1743894277181,0.77809,1800.0,1799.9,2.19082151]
[1743894277974,0.77809,1800.0,1799.9,2.96893151]
[1743894278380,0.77809,1800.0,1799.9,2.19082151]
[1743894279883,0.77809,1800.0,1799.9,2.19252427]
[1743894280985,2.28479,1800.0,1799.9,2.19252427]
[1743894282384,2.98289,1800.0,1799.9,2.19252427]
[1743894283087,2.98289,1800.0,1799.9,0.75502427]
[1743894283486,0.77815,1799.9,1799.7,3.73092074]
[1743894283786,2.30395,1799.9,1799.8,0.75519148]
[1743894283980,2.30395,1799.9,1799.8,2.25819148]
[1743894286291,2.30395,1799.9,1799.8,3.03634148]
[1743894286489,1.5258,1799.9,1799.8,3.03634148]
[1743894287092,2.30391,1799.9,1799.8,3.03639729]
[1743894287397,2.30391,1799.9,1799.8,2.25824729]
[1743894287997,2.30391,1799.9,1799.8,2.25825447]
[1743894288598,2.30391,1799.9,1799.8,2.25824769]
[1743894288997,1.5258,1799.9,1799.8,3.03640572]
[1743894289190,2.30391,1799.9,1799.8,2.25825572]
[1743894290799,2.30391,1799.9,1799.8,2.25827308]
[1743894294090,1.5258,1799.9,1799.8,3.03642308]
[1743894294992,2.30391,1799.9,1799.8,3.03642308]
[1743894295200,2.30391,1799.9,1799.8,2.25827308]
[1743894295997,1.5258,1799.9,1799.8,3.03642308]
[1743894296299,1.5258,1799.9,1799.8,3.03648515]
[1743894296894,1.5258,1799.9,1799.8,2.28115]
[1743894297098,1.5258,1799.9,1799.8,3.03647789]
[1743894297796,0.7781,1800.0,1799.8,3.03647789]
[1743894297994,21.13152835,1800.1,1799.9,2.94463789]
[1743894297995,22.66377835,1800.1,1799.9,2.94463789]
[1743894298193,22.66377835,1800.1,1800.0,0.75532789]
[1743894298497,25.87157835,1800.1,1800.0,0.75532789]
[1743894301404,25.87157835,1800.1,1800.0,0.75523941]
[1743894302398,25.87157835,1800.1,1800.0,2.95583941]
[1743894303108,25.87157835,1800.1,1800.0,2.95557074]
[1743894303900,22.66377835,1800.1,1800.0,2.95557074]
[1743894304410,25.87157835,1800.1,1800.0,2.95557074]
[1743894304710,22.66377835,1800.1,1800.0,2.95557074]
[1743894305407,22.66377835,1800.1,1800.0,3.73364074]
[1743894305706,19.65042835,1800.1,1800.0,6.94144074]
[1743894306006,19.65042835,1800.1,1800.0,9.44144074]
[1743894306206,19.65042835,1800.1,1800.0,6.94144074]
[1743894307905,21.10582835,1800.4,1800.3,0.77794]
[1743894308103,19.6298466,1800.4,1800.3,1.53291074]
[1743894308601,19.6298466,1800.4,1800.3,1.53082505]
[1743894309319,19.6298466,1800.4,1800.3,2.25762505]
[1743894312114,19.6298466,1800.4,1800.3,1.50474]
[1743894312313,19.6298466,1800.4,1800.3,2.25603982]
[1743894315511,21.0448466,1800.4,1800.3,2.25603982]
[1743894315815,21.0448466,1800.4,1800.3,2.25519742]
[1743894318416,21.8227466,1800.4,1800.3,2.25519742]
[1743894318711,21.8227466,1800.4,1800.3,0.75045742]
[1743894319524,21.8227466,1800.4,1800.3,0.75098959]
[1743894319817,21.0448466,1800.4,1800.3,1.52892959]
[1743894321519,21.8227466,1800.4,1800.3,1.52892959]
[1743894321717,21.8227466,1800.4,1800.3,0.75098959]
[1743894323119,21.8227466,1800.4,1800.3,1.52892959]
[1743894324321,21.8227466,1800.4,1800.3,0.75098959]
[1743894328625,0.77797,1800.3,1800.1,3.9858]
[1743894328821,0.77797,1800.3,1800.2,0.75126546]
[1743894328822,3.71277,1800.3,1800.2,0.75126546]
[1743894329022,7.24777,1800.3,1800.2,0.75126546]
[1743894330627,7.24777,1800.3,1800.2,0.75144838]
[1743894331129,7.24777,1800.3,1800.2,1.52942838]
[1743894331729,3.535,1800.3,1800.2,1.52942838]
[1743894331929,23.1648466,1800.4,1800.3,0.77794]
[1743894332228,19.6298466,1800.4,1800.3,2.23368838]
[1743894332426,19.6298466,1800.4,1800.3,3.70600285]
[1743894334229,19.6298466,1800.4,1800.3,3.70634758]
[1743894335231,20.4077466,1800.4,1800.3,3.70634758]
[1743894335531,27.54695841,1800.5,1800.3,3.70634758]
[1743894335723,27.54695841,1800.5,1800.4,2.18880758]
[1743894336537,26.76907841,1800.5,1800.4,2.96670758]
[1743894337931,27.54692841,1800.5,1800.4,2.97521393]
[1743894339132,26.76907841,1800.5,1800.4,2.97521393]
[1743894339332,27.54692841,1800.5,1800.4,2.97521393]
[1743894339631,27.54692841,1800.5,1800.4,2.97520597]
[1743894340231,27.54692841,1800.5,1800.4,2.19730597]
[1743894340532,23.23407841,1800.5,1800.4,2.97520597]
[1743894340741,21.76687841,1800.5,1800.4,2.97520597]
[1743894341835,23.26357841,1800.5,1800.4,2.97520597]
[1743894342032,21.76687841,1800.5,1800.4,2.97520597]
[1743894342331,21.76687841,1800.5,1800.4,2.2148]
[1743894342531,21.76687841,1800.5,1800.4,2.97515421]
[1743894343132,22.54472841,1800.5,1800.4,2.97515421]
[1743894343437,22.54472841,1800.5,1800.4,2.97510341]
[1743894343735,21.76687841,1800.5,1800.4,2.97510341]
[1743894344438,22.54472841,1800.5,1800.4,2.97510341]
[1743894344733,21.76687841,1800.5,1800.4,2.97510341]
[1743894345434,22.54472841,1800.5,1800.4,2.97510341]
[1743894345835,22.54472841,1800.5,1800.4,2.19720341]
[1743894346239,21.76687841,1800.5,1800.4,2.97510341]
[1743894348941,21.76687841,1800.5,1800.4,2.97501047]
[1743894350633,47.20626501,1800.6,1800.4,2.2148]
[1743894350935,47.20626501,1800.6,1800.5,3.00008174]
[1743894352739,47.20626501,1800.6,1800.5,3.77793174]
[1743894354343,47.20626501,1800.6,1800.5,3.77791547]
[1743894354841,47.20626501,1800.6,1800.5,3.00006547]
[1743894355541,47.20626501,1800.6,1800.5,3.77791547]
[1743894355742,47.93826501,1800.6,1800.5,3.77791547]
[1743894355944,47.93826501,1800.6,1800.5,3.00006547]
[1743894356746,47.93826501,1800.6,1800.5,2.27476547]
[1743894356947,47.93826501,1800.6,1800.5,0.76016547]
[1743894358144,47.93826501,1800.6,1800.5,0.76025189]
[1743894359942,47.93826501,1800.6,1800.5,0.76039568]
[1743894361249,0.77788,1800.5,1800.3,0.77791]
[1743894361550,46.44156501,1800.6,1800.5,0.77785]
[1743894361752,47.92706501,1800.6,1800.5,1.53843382]
[1743894362749,28.29721841,1800.6,1800.5,1.53843382]
[1743894362950,28.29721841,1800.6,1800.5,1.53853416]
[1743894363250,23.25237841,1800.6,1800.5,1.53853416]
[1743894363450,26.78737841,1800.6,1800.5,2.93573416]
[1743894365651,27.56518841,1800.6,1800.5,2.93573416]
[1743894365961,26.78737841,1800.6,1800.5,2.93573416]
[1743894366959,27.56518841,1800.6,1800.5,2.93573416]
[1743894368961,47.23129117,1800.6,1800.5,2.93573416]
[1743894369763,47.23129117,1800.6,1800.5,2.15788416]
[1743894369958,47.23129117,1800.6,1800.5,1.53853416]
[1743894372064,47.23129117,1800.6,1800.5,1.53833426]
[1743894374265,46.45348117,1800.6,1800.5,1.53833426]
[1743894375658,47.23129117,1800.6,1800.5,0.76048426]
[1743894377168,47.23129117,1800.6,1800.5,1.53833426]
[1743894377461,47.23129117,1800.6,1800.5,0.77785]
[1743894377666,47.23129117,1800.6,1800.5,1.53777018]
[1743894377859,47.23129117,1800.6,1800.5,2.94287018]
[1743894378276,47.23129117,1800.6,1800.5,2.16502018]
[1743894378568,47.23129117,1800.6,1800.5,0.75992018]
[1743894378757,47.96789117,1800.6,1800.5,0.75992018]
[1743894378955,47.96789117,1800.6,1800.5,2.16502018]
[1743894379371,47.96789117,1800.6,1800.5,2.16506497]
[1743894379668,47.96789117,1800.6,1800.5,2.16509754]
[1743894380268,47.96789117,1800.6,1800.5,2.94294754]
[1743894380470,47.19008117,1800.6,1800.5,2.94294754]
[1743894380669,47.23129117,1800.6,1800.5,2.94294754]
[1743894380971,47.23129117,1800.6,1800.5,2.94297489]
[1743894381466,47.23129117,1800.6,1800.5,2.16512489]
[1743894382671,47.23129117,1800.6,1800.5,2.16514892]
[1743894384275,47.23129117,1800.6,1800.5,2.16514849]
[1743894384573,47.23129117,1800.6,1800.5,0.76004849]
[1743894385874,0.77787,1800.5,1800.3,5.416]
[1743894386071,2.25417,1800.5,1800.4,0.75979405]
[1743894386973,2.98607,1800.5,1800.4,0.75979405]
[1743894389577,0.7779,1800.4,1800.3,1.4303]
[1743894389776,2.2736,1800.4,1800.3,2.19048135]
[1743894391277,2.2736,1800.4,1800.3,2.19037822]
[1743894394586,21.93970276,1800.4,1800.3,2.19037822]
[1743894394781,21.16180276,1800.4,1800.3,2.96831822]
[1743894394983,21.93970276,1800.4,1800.3,2.96831822]
[1743894395279,21.93970276,1800.4,1800.3,2.19037822]
[1743894396779,21.93970276,1800.4,1800.3,2.19025614]
[1743894397081,21.93970276,1800.4,1800.3,2.96819614]
[1743894397282,21.93970276,1800.4,1800.3,2.19025614]
[1743894398686,21.93970276,1800.4,1800.3,2.19027248]
[1743894400487,21.93970276,1800.4,1800.3,2.96821248]
[1743894400688,21.93970276,1800.4,1800.3,2.19027248]
[1743894401981,21.93970276,1800.4,1800.3,2.96821248]
[1743894404090,21.93970276,1800.4,1800.3,2.96824458]
[1743894405590,21.93970276,1800.4,1800.3,2.19030458]
[1743894406092,21.93970276,1800.4,1800.3,2.19050804]
[1743894407994,21.93970276,1800.4,1800.3,0.76020804]
[1743894408187,22.68420276,1800.4,1800.3,0.76020804]
[1743894409594,0.77798,1800.3,1800.1,0.77802]
[1743894409794,1.5378,1800.2,1800.1,2.22612]
[1743894410096,1.5378,1800.2,1800.1,2.98628197]
[1743894410891,2.31578,1800.2,1800.1,2.98628197]
[1743894411492,2.31578,1800.2,1800.1,2.20826197]
[1743894411794,2.31578,1800.2,1800.1,2.98629197]
[1743894412695,2.31578,1800.2,1800.1,2.20826197]
[1743894413387,2.31578,1800.2,1800.1,2.20799379]
[1743894413593,2.31578,1800.2,1800.1,2.98602379]
[1743894414795,2.31578,1800.2,1800.1,2.20799379]
[1743894417099,2.31578,1800.2,1800.1,2.20793867]
[1743894419095,1.5378,1800.2,1800.1,2.98596867]
[1743894420503,2.31578,1800.2,1800.1,2.20793867]
[1743894421597,1.5378,1800.2,1800.1,2.98596867]
[1743894423603,2.31578,1800.2,1800.1,2.98596867]
[1743894423803,2.31578,1800.2,1800.1,2.98576707]
[1743894424106,1.5378,1800.2,1800.1,2.98576707]
[1743894424306,2.31578,1800.2,1800.1,0.75963707]
[1743894424806,2.31578,1800.2,1800.1,2.96436707]
[1743894425309,1.5378,1800.2,1800.1,2.96436707]
[1743894425701,2.31578,1800.2,1800.1,2.96436707]
[1743894426004,23.97807276,1800.3,1800.1,2.96436707]
[1743894426204,23.97804276,1800.3,1800.2,2.98743707]
[1743894426403,25.46164276,1800.3,1800.2,2.98743707]
[1743894427503,25.46164276,1800.3,1800.2,2.98758889]
[1743894429201,25.46164276,1800.3,1800.2,2.9876983]
[1743894431110,25.46164276,1800.3,1800.2,2.99369516]
[1743894432912,25.46164276,1800.3,1800.2,2.99378434]
[1743894438016,19.66610276,1800.3,1800.2,3.77176434]
[1743894439717,20.44404276,1800.3,1800.2,2.99378434]
[1743894440020,20.44404276,1800.3,1800.2,0.76598434]
[1743894440317,0.77803,1800.1,1800.0,4.71464]
[1743894440519,2.21502,1800.2,1800.0,5.46033642]
[1743894440718,2.19443825,1800.2,1800.1,0.76627817]
[1743894441113,8.93523825,1800.2,1800.1,0.76627817]
[1743894442016,0.77807,1800.0,1799.9,1.3939]
[1743894442220,0.77807,1800.0,1799.9,2.13976039]
[1743894442422,3.98587,1800.0,1799.9,0.76644214]
[1743894442820,5.47287,1800.0,1799.9,0.76644214]
[1743894444218,2.26507,1800.0,1799.9,0.76644214]
[1743894445232,6.7408,1800.2,1799.9,0.76644214]
[1743894445426,3.533,1800.2,1800.0,2.21854214]
[1743894445723,21.84797276,1800.3,1800.1,4.44727214]